Workbook

Sheet ЦЕЛИ
B1: =TODAY() -> 2017-05-05 | C1: ЦЕЛИ | J1: Упражнения | K1: Питание
B2: ДАТА НАЧАЛА | C2: ДНЕВНИК ПИТАНИЯ И УПРАЖНЕНИЙ
B3: =ДатаНачала+121 -> 2017-09-03 | C3: АНАЛИЗ ПИТАНИЯ
B5: ДАТА ОКОНЧАНИЯ
B6: 100.00
B7: НАЧАЛЬНЫЙ ВЕС
B8: 80.00 | C8: АНАЛИЗ УПРАЖНЕНИЙ
B10: КОНЕЧНЫЙ ВЕС
B11: =НачальныйВес-КонечныйВес -> 20
B12: ЦЕЛЬ ПОТЕРИ ВЕСА
B13: =ДатаОкончания-ДатаНачала -> 121
B14: ДНЕЙ НА ПОТЕРЮ ВЕСА
B15: =ЦельВеса/B13 -> 0.17
B16: ПОТЕРЯ ВЕСА В ДЕНЬ

Sheet ПИТАНИЕ
B1: ПИТАНИЕ | G1: Цели | H1: Упражнения
B2: =Подзаголовок -> ДНЕВНИК ПИТАНИЯ И УПРАЖНЕНИЙ
B3: ДАТА | C3: ВРЕМЯ | D3: ОПИСАНИЕ | E3: КАЛОРИИ | F3: УГЛЕВОДЫ | G3: БЕЛКИ | H3: ЖИРЫ | I3: ЗАМЕТКИ
B4: =ДатаНачала -> 2017-05-05 | C4: 07:00:00 | D4: Кофе | E4: 1 | F4: 0 | G4: 0 | H4: 0 | I4: Утренний кофе
B5: =ДатаНачала -> 2017-05-05 | C5: 08:00:00 | D5: Бублик | E5: 10 | F5: 10 | G5: 2 | H5: 10 | I5: Легкий завтрак
B6: =ДатаНачала -> 2017-05-05 | C6: 12:00:00 | D6: Обед | E6: 283 | F6: 46 | G6: 18 | H6: 4 | I6: Сэндвич с индейкой
B7: =ДатаНачала -> 2017-05-05 | C7: 19:00:00 | D7: Ужин | E7: 500 | F7: 42 | G7: 35 | H7: 25 | I7: Запеканка с картофельными шариками
B8: =ДатаНачала+1 -> 2017-05-06 | C8: 07:00:00 | D8: Кофе | E8: 1 | F8: 0 | G8: 0 | H8: 0 | I8: Утренний кофе
B9: =ДатаНачала+1 -> 2017-05-06 | C9: 08:00:00 | D9: Гренка | E9: 10 | F9: 10 | G9: 2 | H9: 10 | I9: Легкий завтрак
B10: =ДатаНачала+1 -> 2017-05-06 | C10: 12:00:00 | D10: Обед | E10: 189 | F10: 26 | G10: 3 | H10: 8 | I10: Сэндвич
B11: =ДатаНачала+1 -> 2017-05-06 | C11: 19:00:00 | D11: Ужин | E11: 477 | F11: 62 | G11: 14 | H11: 21 | I11: Ужин
B12: =ДатаНачала+2 -> 2017-05-07 | C12: 07:00:00 | D12: Кофе | E12: 1 | F12: 0 | G12: 0 | H12: 0 | I12: Утренний кофе
B13: =ДатаНачала+2 -> 2017-05-07 | C13: 08:00:00 | D13: Бублик | E13: 245 | F13: 48 | G13: 10 | H13: 2 | I13: Легкий завтрак
B14: =ДатаНачала+2 -> 2017-05-07 | C14: 12:00:00 | D14: Обед | E14: 247 | F14: 11 | G14: 43 | H14: 5 | I14: Салат
B15: =ДатаНачала+2 -> 2017-05-07 | C15: 19:00:00 | D15: Ужин | E15: 456 | F15: 64 | G15: 32 | H15: 22 | I15: Ужин
B16: =ДатаНачала+3 -> 2017-05-08 | C16: 07:00:00 | D16: Гренка | E16: 10 | F16: 10 | G16: 2 | H16: 10 | I16: Легкий завтрак
B17: =ДатаНачала+3 -> 2017-05-08 | C17: 10:00:00 | D17: Кофе | E17: 135 | F17: 12 | G17: 9 | H17: 6 | I17: Латте
B18: =ДатаНачала+3 -> 2017-05-08 | C18: 12:15:00 | D18: Обед | E18: 184 | F18: 7 | G18: 5 | H18: 15 | I18: Салат
B19: =ДатаНачала+5 -> 2017-05-10 | C19: 19:00:00 | D19: Ужин | E19: 477 | F19: 62 | G19: 14 | H19: 21 | I19: Ужин

Sheet УПРАЖНЕНИЯ
B1: УПРАЖНЕНИЯ | F1: Питание | G1: Цели
B2: =Подзаголовок -> ДНЕВНИК ПИТАНИЯ И УПРАЖНЕНИЙ
B3: ДАТА | C3: ДЛИТЕЛЬНОСТЬ (МИН) | D3: СОЖЖЕННЫЕ КАЛОРИИ | E3: ЗАМЕТКИ
B4: =ДатаНачала+4 -> 2017-05-09 | C4: 30 | D4: 120 | E4: Тренировка на беговой дорожке
B5: =B4+1 -> 2017-05-10 | C5: 60 | D5: 180 | E5: Аэробика с малой ударной нагрузкой
B6: =B5+1 -> 2017-05-11 | C6: 60 | D6: 350 | E6: Тренировка с предельными нагрузками
B7: 2017-05-12 | C7: 30 | D7: 150 | E7: Тренировка на беговой дорожке
B8: 2017-05-13 | C8: 25 | D8: 125 | E8: Бег
B9: 2017-05-14 | C9: 20 | D9: 285 | E9: Тренировка на беговой дорожке
B10: 2017-05-15 | C10: 40 | D10: 205 | E10: Бег
B11: 2017-05-16 | C11: 30 | D11: 335 | E11: Бег
B12: 2017-05-17 | C12: 40 | D12: 175 | E12: Бег
B13: 2017-05-18 | C13: 45 | D13: 325 | E13: Тренировка на беговой дорожке
B14: 2017-05-19 | C14: 40 | D14: 270 | E14: Бег
B15: 2017-05-20 | C15: 20 | D15: 295 | E15: Тренировка на беговой дорожке
B16: 2017-05-21 | C16: 45 | D16: 350 | E16: Бег
B17: 2017-05-22 | C17: 35 | D17: 320 | E17: Бег
B18: 2017-05-23 | C18: 40 | D18: 290 | E18: Бег
B19: =B18+1 -> 2017-05-24 | C19: 25 | D19: 265 | E19: Тренировка на беговой дорожке
B20: 2017-05-25 | C20: 20 | D20: 195 | E20: Бег

Sheet Расчеты диаграммы (hidden)
B2: ДАННЫЕ ДИАГРАММЫ АНАЛИЗА ПИТАНИЯ
B4: Начальная строка | C4: =ROW(Питание[[#Headers],[ДАТА]])+1 -> 4 | D4: ДАТА | E4: ДЕНЬ | F4: ЖИРЫ | G4: БЕЛКИ | H4: УГЛЕВОДЫ | I4: КАЛОРИИ | J4: Число
B5: Последняя запись о питании | C5: =MATCH(9.99E+307,Питание[ДАТА])+НачальнаяСтрокаПитания-1 -> 19 | D5: =IFERROR(IF(INDEX(Питание[],ПоследняяЗаписьОПитании-НачальнаяСтрокаПитания-J5,1)<>"",INDEX(Питание[],ПоследняяЗаписьОПитании-НачальнаяСтрокаПитания-J5,1),""),"") -> 2017-05-05 | E5: =UPPER(TEXT(D5,"ДДД")) -> ПТ | F5: =IFERROR((IF(INDEX(Питание[],ПоследняяЗаписьОПитании-НачальнаяСтрокаПитания-J5,1)<>"",INDEX(Питание[],ПоследняяЗаписьОПитании-НачальнаяСтрокаПитания-J5,7),NA())),NA()) -> 3.5 | G5: =IFERROR((IF(INDEX(Питание[],ПоследняяЗаписьОПитании-НачальнаяСтрокаПитания-J5,1)<>"",INDEX(Питание[],ПоследняяЗаписьОПитании-НачальнаяСтрокаПитания-J5,6),NA())),NA()) -> 18 | H5: =IFERROR((IF(INDEX(Питание[],ПоследняяЗаписьОПитании-НачальнаяСтрокаПитания-J5,1)<>"",INDEX(Питание[],ПоследняяЗаписьОПитании-НачальнаяСтрокаПитания-J5,5),NA())),NA()) -> 46 | I5: =IFERROR((IF(INDEX(Питание[],ПоследняяЗаписьОПитании-НачальнаяСтрокаПитания-J5,1)<>"",INDEX(Питание[],ПоследняяЗаписьОПитании-НачальнаяСтрокаПитания-J5,4),NA())),NA()) -> 283 | J5: 12
D6: =IFERROR(IF(INDEX(Питание[],ПоследняяЗаписьОПитании-НачальнаяСтрокаПитания-J6,1)<>"",INDEX(Питание[],ПоследняяЗаписьОПитании-НачальнаяСтрокаПитания-J6,1),""),"") -> 2017-05-05 | E6: ПТ | F6: =IFERROR((IF(INDEX(Питание[],ПоследняяЗаписьОПитании-НачальнаяСтрокаПитания-J6,1)<>"",INDEX(Питание[],ПоследняяЗаписьОПитании-НачальнаяСтрокаПитания-J6,7),NA())),NA()) -> 25 | G6: =IFERROR((IF(INDEX(Питание[],ПоследняяЗаписьОПитании-НачальнаяСтрокаПитания-J6,1)<>"",INDEX(Питание[],ПоследняяЗаписьОПитании-НачальнаяСтрокаПитания-J6,6),NA())),NA()) -> 35 | H6: =IFERROR((IF(INDEX(Питание[],ПоследняяЗаписьОПитании-НачальнаяСтрокаПитания-J6,1)<>"",INDEX(Питание[],ПоследняяЗаписьОПитании-НачальнаяСтрокаПитания-J6,5),NA())),NA()) -> 42 | I6: =IFERROR((IF(INDEX(Питание[],ПоследняяЗаписьОПитании-НачальнаяСтрокаПитания-J6,1)<>"",INDEX(Питание[],ПоследняяЗаписьОПитании-НачальнаяСтрокаПитания-J6,4),NA())),NA()) -> 500 | J6: 11
D7: =IFERROR(IF(INDEX(Питание[],ПоследняяЗаписьОПитании-НачальнаяСтрокаПитания-J7,1)<>"",INDEX(Питание[],ПоследняяЗаписьОПитании-НачальнаяСтрокаПитания-J7,1),""),"") -> 2017-05-06 | E7: СБ | F7: =IFERROR((IF(INDEX(Питание[],ПоследняяЗаписьОПитании-НачальнаяСтрокаПитания-J7,1)<>"",INDEX(Питание[],ПоследняяЗаписьОПитании-НачальнаяСтрокаПитания-J7,7),NA())),NA()) -> 0 | G7: =IFERROR((IF(INDEX(Питание[],ПоследняяЗаписьОПитании-НачальнаяСтрокаПитания-J7,1)<>"",INDEX(Питание[],ПоследняяЗаписьОПитании-НачальнаяСтрокаПитания-J7,6),NA())),NA()) -> 0 | H7: =IFERROR((IF(INDEX(Питание[],ПоследняяЗаписьОПитании-НачальнаяСтрокаПитания-J7,1)<>"",INDEX(Питание[],ПоследняяЗаписьОПитании-НачальнаяСтрокаПитания-J7,5),NA())),NA()) -> 0 | I7: =IFERROR((IF(INDEX(Питание[],ПоследняяЗаписьОПитании-НачальнаяСтрокаПитания-J7,1)<>"",INDEX(Питание[],ПоследняяЗаписьОПитании-НачальнаяСтрокаПитания-J7,4),NA())),NA()) -> 1 | J7: 10
D8: =IFERROR(IF(INDEX(Питание[],ПоследняяЗаписьОПитании-НачальнаяСтрокаПитания-J8,1)<>"",INDEX(Питание[],ПоследняяЗаписьОПитании-НачальнаяСтрокаПитания-J8,1),""),"") -> 2017-05-06 | E8: СБ | F8: =IFERROR((IF(INDEX(Питание[],ПоследняяЗаписьОПитании-НачальнаяСтрокаПитания-J8,1)<>"",INDEX(Питание[],ПоследняяЗаписьОПитании-НачальнаяСтрокаПитания-J8,7),NA())),NA()) -> 10 | G8: =IFERROR((IF(INDEX(Питание[],ПоследняяЗаписьОПитании-НачальнаяСтрокаПитания-J8,1)<>"",INDEX(Питание[],ПоследняяЗаписьОПитании-НачальнаяСтрокаПитания-J8,6),NA())),NA()) -> 2 | H8: =IFERROR((IF(INDEX(Питание[],ПоследняяЗаписьОПитании-НачальнаяСтрокаПитания-J8,1)<>"",INDEX(Питание[],ПоследняяЗаписьОПитании-НачальнаяСтрокаПитания-J8,5),NA())),NA()) -> 10 | I8: =IFERROR((IF(INDEX(Питание[],ПоследняяЗаписьОПитании-НачальнаяСтрокаПитания-J8,1)<>"",INDEX(Питание[],ПоследняяЗаписьОПитании-НачальнаяСтрокаПитания-J8,4),NA())),NA()) -> 10 | J8: 9
D9: =IFERROR(IF(INDEX(Питание[],ПоследняяЗаписьОПитании-НачальнаяСтрокаПитания-J9,1)<>"",INDEX(Питание[],ПоследняяЗаписьОПитании-НачальнаяСтрокаПитания-J9,1),""),"") -> 2017-05-06 | E9: СБ | F9: =IFERROR((IF(INDEX(Питание[],ПоследняяЗаписьОПитании-НачальнаяСтрокаПитания-J9,1)<>"",INDEX(Питание[],ПоследняяЗаписьОПитании-НачальнаяСтрокаПитания-J9,7),NA())),NA()) -> 8 | G9: =IFERROR((IF(INDEX(Питание[],ПоследняяЗаписьОПитании-НачальнаяСтрокаПитания-J9,1)<>"",INDEX(Питание[],ПоследняяЗаписьОПитании-НачальнаяСтрокаПитания-J9,6),NA())),NA()) -> 3 | H9: =IFERROR((IF(INDEX(Питание[],ПоследняяЗаписьОПитании-НачальнаяСтрокаПитания-J9,1)<>"",INDEX(Питание[],ПоследняяЗаписьОПитании-НачальнаяСтрокаПитания-J9,5),NA())),NA()) -> 26 | I9: =IFERROR((IF(INDEX(Питание[],ПоследняяЗаписьОПитании-НачальнаяСтрокаПитания-J9,1)<>"",INDEX(Питание[],ПоследняяЗаписьОПитании-НачальнаяСтрокаПитания-J9,4),NA())),NA()) -> 189 | J9: 8
D10: =IFERROR(IF(INDEX(Питание[],ПоследняяЗаписьОПитании-НачальнаяСтрокаПитания-J10,1)<>"",INDEX(Питание[],ПоследняяЗаписьОПитании-НачальнаяСтрокаПитания-J10,1),""),"") -> 2017-05-06 | E10: СБ | F10: =IFERROR((IF(INDEX(Питание[],ПоследняяЗаписьОПитании-НачальнаяСтрокаПитания-J10,1)<>"",INDEX(Питание[],ПоследняяЗаписьОПитании-НачальнаяСтрокаПитания-J10,7),NA())),NA()) -> 21 | G10: =IFERROR((IF(INDEX(Питание[],ПоследняяЗаписьОПитании-НачальнаяСтрокаПитания-J10,1)<>"",INDEX(Питание[],ПоследняяЗаписьОПитании-НачальнаяСтрокаПитания-J10,6),NA())),NA()) -> 13.5 | H10: =IFERROR((IF(INDEX(Питание[],ПоследняяЗаписьОПитании-НачальнаяСтрокаПитания-J10,1)<>"",INDEX(Питание[],ПоследняяЗаписьОПитании-НачальнаяСтрокаПитания-J10,5),NA())),NA()) -> 62 | I10: =IFERROR((IF(INDEX(Питание[],ПоследняяЗаписьОПитании-НачальнаяСтрокаПитания-J10,1)<>"",INDEX(Питание[],ПоследняяЗаписьОПитании-НачальнаяСтрокаПитания-J10,4),NA())),NA()) -> 477 | J10: 7
D11: =IFERROR(IF(INDEX(Питание[],ПоследняяЗаписьОПитании-НачальнаяСтрокаПитания-J11,1)<>"",INDEX(Питание[],ПоследняяЗаписьОПитании-НачальнаяСтрокаПитания-J11,1),""),"") -> 2017-05-07 | E11: ВС | F11: =IFERROR((IF(INDEX(Питание[],ПоследняяЗаписьОПитании-НачальнаяСтрокаПитания-J11,1)<>"",INDEX(Питание[],ПоследняяЗаписьОПитании-НачальнаяСтрокаПитания-J11,7),NA())),NA()) -> 0 | G11: =IFERROR((IF(INDEX(Питание[],ПоследняяЗаписьОПитании-НачальнаяСтрокаПитания-J11,1)<>"",INDEX(Питание[],ПоследняяЗаписьОПитании-НачальнаяСтрокаПитания-J11,6),NA())),NA()) -> 0 | H11: =IFERROR((IF(INDEX(Питание[],ПоследняяЗаписьОПитании-НачальнаяСтрокаПитания-J11,1)<>"",INDEX(Питание[],ПоследняяЗаписьОПитании-НачальнаяСтрокаПитания-J11,5),NA())),NA()) -> 0 | I11: =IFERROR((IF(INDEX(Питание[],ПоследняяЗаписьОПитании-НачальнаяСтрокаПитания-J11,1)<>"",INDEX(Питание[],ПоследняяЗаписьОПитании-НачальнаяСтрокаПитания-J11,4),NA())),NA()) -> 1 | J11: 6
D12: =IFERROR(IF(INDEX(Питание[],ПоследняяЗаписьОПитании-НачальнаяСтрокаПитания-J12,1)<>"",INDEX(Питание[],ПоследняяЗаписьОПитании-НачальнаяСтрокаПитания-J12,1),""),"") -> 2017-05-07 | E12: ВС | F12: =IFERROR((IF(INDEX(Питание[],ПоследняяЗаписьОПитании-НачальнаяСтрокаПитания-J12,1)<>"",INDEX(Питание[],ПоследняяЗаписьОПитании-НачальнаяСтрокаПитания-J12,7),NA())),NA()) -> 1.5 | G12: =IFERROR((IF(INDEX(Питание[],ПоследняяЗаписьОПитании-НачальнаяСтрокаПитания-J12,1)<>"",INDEX(Питание[],ПоследняяЗаписьОПитании-НачальнаяСтрокаПитания-J12,6),NA())),NA()) -> 10 | H12: =IFERROR((IF(INDEX(Питание[],ПоследняяЗаписьОПитании-НачальнаяСтрокаПитания-J12,1)<>"",INDEX(Питание[],ПоследняяЗаписьОПитании-НачальнаяСтрокаПитания-J12,5),NA())),NA()) -> 48 | I12: =IFERROR((IF(INDEX(Питание[],ПоследняяЗаписьОПитании-НачальнаяСтрокаПитания-J12,1)<>"",INDEX(Питание[],ПоследняяЗаписьОПитании-НачальнаяСтрокаПитания-J12,4),NA())),NA()) -> 245 | J12: 5
D13: =IFERROR(IF(INDEX(Питание[],ПоследняяЗаписьОПитании-НачальнаяСтрокаПитания-J13,1)<>"",INDEX(Питание[],ПоследняяЗаписьОПитании-НачальнаяСтрокаПитания-J13,1),""),"") -> 2017-05-07 | E13: ВС | F13: =IFERROR((IF(INDEX(Питание[],ПоследняяЗаписьОПитании-НачальнаяСтрокаПитания-J13,1)<>"",INDEX(Питание[],ПоследняяЗаписьОПитании-НачальнаяСтрокаПитания-J13,7),NA())),NA()) -> 5 | G13: =IFERROR((IF(INDEX(Питание[],ПоследняяЗаписьОПитании-НачальнаяСтрокаПитания-J13,1)<>"",INDEX(Питание[],ПоследняяЗаписьОПитании-НачальнаяСтрокаПитания-J13,6),NA())),NA()) -> 43 | H13: =IFERROR((IF(INDEX(Питание[],ПоследняяЗаписьОПитании-НачальнаяСтрокаПитания-J13,1)<>"",INDEX(Питание[],ПоследняяЗаписьОПитании-НачальнаяСтрокаПитания-J13,5),NA())),NA()) -> 11 | I13: =IFERROR((IF(INDEX(Питание[],ПоследняяЗаписьОПитании-НачальнаяСтрокаПитания-J13,1)<>"",INDEX(Питание[],ПоследняяЗаписьОПитании-НачальнаяСтрокаПитания-J13,4),NA())),NA()) -> 247 | J13: 4
D14: =IFERROR(IF(INDEX(Питание[],ПоследняяЗаписьОПитании-НачальнаяСтрокаПитания-J14,1)<>"",INDEX(Питание[],ПоследняяЗаписьОПитании-НачальнаяСтрокаПитания-J14,1),""),"") -> 2017-05-07 | E14: ВС | F14: =IFERROR((IF(INDEX(Питание[],ПоследняяЗаписьОПитании-НачальнаяСтрокаПитания-J14,1)<>"",INDEX(Питание[],ПоследняяЗаписьОПитании-НачальнаяСтрокаПитания-J14,7),NA())),NA()) -> 22 | G14: =IFERROR((IF(INDEX(Питание[],ПоследняяЗаписьОПитании-НачальнаяСтрокаПитания-J14,1)<>"",INDEX(Питание[],ПоследняяЗаписьОПитании-НачальнаяСтрокаПитания-J14,6),NA())),NA()) -> 32 | H14: =IFERROR((IF(INDEX(Питание[],ПоследняяЗаписьОПитании-НачальнаяСтрокаПитания-J14,1)<>"",INDEX(Питание[],ПоследняяЗаписьОПитании-НачальнаяСтрокаПитания-J14,5),NA())),NA()) -> 64 | I14: =IFERROR((IF(INDEX(Питание[],ПоследняяЗаписьОПитании-НачальнаяСтрокаПитания-J14,1)<>"",INDEX(Питание[],ПоследняяЗаписьОПитании-НачальнаяСтрокаПитания-J14,4),NA())),NA()) -> 456 | J14: 3
D15: =IFERROR(IF(INDEX(Питание[],ПоследняяЗаписьОПитании-НачальнаяСтрокаПитания-J15,1)<>"",INDEX(Питание[],ПоследняяЗаписьОПитании-НачальнаяСтрокаПитания-J15,1),""),"") -> 2017-05-08 | E15: ПН | F15: =IFERROR((IF(INDEX(Питание[],ПоследняяЗаписьОПитании-НачальнаяСтрокаПитания-J15,1)<>"",INDEX(Питание[],ПоследняяЗаписьОПитании-НачальнаяСтрокаПитания-J15,7),NA())),NA()) -> 10 | G15: =IFERROR((IF(INDEX(Питание[],ПоследняяЗаписьОПитании-НачальнаяСтрокаПитания-J15,1)<>"",INDEX(Питание[],ПоследняяЗаписьОПитании-НачальнаяСтрокаПитания-J15,6),NA())),NA()) -> 2 | H15: =IFERROR((IF(INDEX(Питание[],ПоследняяЗаписьОПитании-НачальнаяСтрокаПитания-J15,1)<>"",INDEX(Питание[],ПоследняяЗаписьОПитании-НачальнаяСтрокаПитания-J15,5),NA())),NA()) -> 10 | I15: =IFERROR((IF(INDEX(Питание[],ПоследняяЗаписьОПитании-НачальнаяСтрокаПитания-J15,1)<>"",INDEX(Питание[],ПоследняяЗаписьОПитании-НачальнаяСтрокаПитания-J15,4),NA())),NA()) -> 10 | J15: 2
D16: =IFERROR(IF(INDEX(Питание[],ПоследняяЗаписьОПитании-НачальнаяСтрокаПитания-J16,1)<>"",INDEX(Питание[],ПоследняяЗаписьОПитании-НачальнаяСтрокаПитания-J16,1),""),"") -> 2017-05-08 | E16: ПН | F16: =IFERROR((IF(INDEX(Питание[],ПоследняяЗаписьОПитании-НачальнаяСтрокаПитания-J16,1)<>"",INDEX(Питание[],ПоследняяЗаписьОПитании-НачальнаяСтрокаПитания-J16,7),NA())),NA()) -> 5.51 | G16: =IFERROR((IF(INDEX(Питание[],ПоследняяЗаписьОПитании-НачальнаяСтрокаПитания-J16,1)<>"",INDEX(Питание[],ПоследняяЗаписьОПитании-НачальнаяСтрокаПитания-J16,6),NA())),NA()) -> 8.81 | H16: =IFERROR((IF(INDEX(Питание[],ПоследняяЗаписьОПитании-НачальнаяСтрокаПитания-J16,1)<>"",INDEX(Питание[],ПоследняяЗаписьОПитании-НачальнаяСтрокаПитания-J16,5),NA())),NA()) -> 12.36 | I16: =IFERROR((IF(INDEX(Питание[],ПоследняяЗаписьОПитании-НачальнаяСтрокаПитания-J16,1)<>"",INDEX(Питание[],ПоследняяЗаписьОПитании-НачальнаяСтрокаПитания-J16,4),NA())),NA()) -> 135 | J16: 1
D17: =IFERROR(IF(INDEX(Питание[],ПоследняяЗаписьОПитании-НачальнаяСтрокаПитания-J17,1)<>"",INDEX(Питание[],ПоследняяЗаписьОПитании-НачальнаяСтрокаПитания-J17,1),""),"") -> 2017-05-08 | E17: ПН | F17: =IFERROR((IF(INDEX(Питание[],ПоследняяЗаписьОПитании-НачальнаяСтрокаПитания-J17,1)<>"",INDEX(Питание[],ПоследняяЗаписьОПитании-НачальнаяСтрокаПитания-J17,7),NA())),NA()) -> 15 | G17: =IFERROR((IF(INDEX(Питание[],ПоследняяЗаписьОПитании-НачальнаяСтрокаПитания-J17,1)<>"",INDEX(Питание[],ПоследняяЗаписьОПитании-НачальнаяСтрокаПитания-J17,6),NA())),NA()) -> 5.43 | H17: =IFERROR((IF(INDEX(Питание[],ПоследняяЗаписьОПитании-НачальнаяСтрокаПитания-J17,1)<>"",INDEX(Питание[],ПоследняяЗаписьОПитании-НачальнаяСтрокаПитания-J17,5),NA())),NA()) -> 7 | I17: =IFERROR((IF(INDEX(Питание[],ПоследняяЗаписьОПитании-НачальнаяСтрокаПитания-J17,1)<>"",INDEX(Питание[],ПоследняяЗаписьОПитании-НачальнаяСтрокаПитания-J17,4),NA())),NA()) -> 184 | J17: 0
D18: =IFERROR(IF(INDEX(Питание[],ПоследняяЗаписьОПитании-НачальнаяСтрокаПитания-J18,1)<>"",INDEX(Питание[],ПоследняяЗаписьОПитании-НачальнаяСтрокаПитания-J18,1)),"") -> 2017-05-10 | E18: СР | F18: =IFERROR((IF(INDEX(Питание[],ПоследняяЗаписьОПитании-НачальнаяСтрокаПитания-J18,1)<>"",INDEX(Питание[],ПоследняяЗаписьОПитании-НачальнаяСтрокаПитания-J18,7),NA())),NA()) -> 21 | G18: =IFERROR((IF(INDEX(Питание[],ПоследняяЗаписьОПитании-НачальнаяСтрокаПитания-J18,1)<>"",INDEX(Питание[],ПоследняяЗаписьОПитании-НачальнаяСтрокаПитания-J18,6),NA())),NA()) -> 13.5 | H18: =IFERROR((IF(INDEX(Питание[],ПоследняяЗаписьОПитании-НачальнаяСтрокаПитания-J18,1)<>"",INDEX(Питание[],ПоследняяЗаписьОПитании-НачальнаяСтрокаПитания-J18,5),NA())),NA()) -> 62 | I18: =IFERROR((IF(INDEX(Питание[],ПоследняяЗаписьОПитании-НачальнаяСтрокаПитания-J18,1)<>"",INDEX(Питание[],ПоследняяЗаписьОПитании-НачальнаяСтрокаПитания-J18,4),NA())),NA()) -> 477 | J18: -1
B20: ДАННЫЕ ДИАГРАММЫ АНАЛИЗА УПРАЖНЕНИЙ
B22: Начальная строка | C22: =ROW(Упражнения[[#Headers],[ДАТА]])+1 -> 4 | D22: ДАТА | E22: ДЕНЬ | F22: ДЛИТЕЛЬНОСТЬ (МИН) | G22: СОЖЖЕННЫЕ КАЛОРИИ | H22: Число
B23: Последняя запись об упражнениях | C23: =MATCH(9.99E+307,Упражнения[ДАТА])+НачальнаяСтрокаУпражнений-1 -> 20 | D23: =IFERROR(IF(INDEX(Упражнения[],ПоследняяЗаписьОбУпражнениях-НачальнаяСтрокаУпражнений-H23,1)<>"",INDEX(Упражнения[],ПоследняяЗаписьОбУпражнениях-НачальнаяСтрокаУпражнений-H23,1)),"") -> 2017-05-25 | E23: =UPPER(TEXT(D23,"ДДД")) -> ЧТ | F23: =IFERROR((IF(INDEX(Упражнения[],ПоследняяЗаписьОбУпражнениях-НачальнаяСтрокаУпражнений-H23,1)<>"",INDEX(Упражнения[],ПоследняяЗаписьОбУпражнениях-НачальнаяСтрокаУпражнений-H23,2),0)),0) -> 20 | G23: =IFERROR((IF(INDEX(Упражнения[],ПоследняяЗаписьОбУпражнениях-НачальнаяСтрокаУпражнений-H23,2)<>"",INDEX(Упражнения[],ПоследняяЗаписьОбУпражнениях-НачальнаяСтрокаУпражнений-H23,3),0)),0) -> 195 | H23: -1
D24: =IFERROR(IF(INDEX(Упражнения[],ПоследняяЗаписьОбУпражнениях-НачальнаяСтрокаУпражнений-H24,1)<>"",INDEX(Упражнения[],ПоследняяЗаписьОбУпражнениях-НачальнаяСтрокаУпражнений-H24,1)),"") -> 2017-05-24 | E24: СР | F24: =IFERROR((IF(INDEX(Упражнения[],ПоследняяЗаписьОбУпражнениях-НачальнаяСтрокаУпражнений-H24,1)<>"",INDEX(Упражнения[],ПоследняяЗаписьОбУпражнениях-НачальнаяСтрокаУпражнений-H24,2),0)),0) -> 25 | G24: =IFERROR((IF(INDEX(Упражнения[],ПоследняяЗаписьОбУпражнениях-НачальнаяСтрокаУпражнений-H24,2)<>"",INDEX(Упражнения[],ПоследняяЗаписьОбУпражнениях-НачальнаяСтрокаУпражнений-H24,3),0)),0) -> 265 | H24: 0
D25: =IFERROR(IF(INDEX(Упражнения[],ПоследняяЗаписьОбУпражнениях-НачальнаяСтрокаУпражнений-H25,1)<>"",INDEX(Упражнения[],ПоследняяЗаписьОбУпражнениях-НачальнаяСтрокаУпражнений-H25,1)),"") -> 2017-05-23 | E25: ВТ | F25: =IFERROR((IF(INDEX(Упражнения[],ПоследняяЗаписьОбУпражнениях-НачальнаяСтрокаУпражнений-H25,1)<>"",INDEX(Упражнения[],ПоследняяЗаписьОбУпражнениях-НачальнаяСтрокаУпражнений-H25,2),0)),0) -> 40 | G25: =IFERROR((IF(INDEX(Упражнения[],ПоследняяЗаписьОбУпражнениях-НачальнаяСтрокаУпражнений-H25,2)<>"",INDEX(Упражнения[],ПоследняяЗаписьОбУпражнениях-НачальнаяСтрокаУпражнений-H25,3),0)),0) -> 290 | H25: 1
D26: =IFERROR(IF(INDEX(Упражнения[],ПоследняяЗаписьОбУпражнениях-НачальнаяСтрокаУпражнений-H26,1)<>"",INDEX(Упражнения[],ПоследняяЗаписьОбУпражнениях-НачальнаяСтрокаУпражнений-H26,1)),"") -> 2017-05-22 | E26: ПН | F26: =IFERROR((IF(INDEX(Упражнения[],ПоследняяЗаписьОбУпражнениях-НачальнаяСтрокаУпражнений-H26,1)<>"",INDEX(Упражнения[],ПоследняяЗаписьОбУпражнениях-НачальнаяСтрокаУпражнений-H26,2),0)),0) -> 35 | G26: =IFERROR((IF(INDEX(Упражнения[],ПоследняяЗаписьОбУпражнениях-НачальнаяСтрокаУпражнений-H26,2)<>"",INDEX(Упражнения[],ПоследняяЗаписьОбУпражнениях-НачальнаяСтрокаУпражнений-H26,3),0)),0) -> 320 | H26: 2
D27: =IFERROR(IF(INDEX(Упражнения[],ПоследняяЗаписьОбУпражнениях-НачальнаяСтрокаУпражнений-H27,1)<>"",INDEX(Упражнения[],ПоследняяЗаписьОбУпражнениях-НачальнаяСтрокаУпражнений-H27,1)),"") -> 2017-05-21 | E27: ВС | F27: =IFERROR((IF(INDEX(Упражнения[],ПоследняяЗаписьОбУпражнениях-НачальнаяСтрокаУпражнений-H27,1)<>"",INDEX(Упражнения[],ПоследняяЗаписьОбУпражнениях-НачальнаяСтрокаУпражнений-H27,2),0)),0) -> 45 | G27: =IFERROR((IF(INDEX(Упражнения[],ПоследняяЗаписьОбУпражнениях-НачальнаяСтрокаУпражнений-H27,2)<>"",INDEX(Упражнения[],ПоследняяЗаписьОбУпражнениях-НачальнаяСтрокаУпражнений-H27,3),0)),0) -> 350 | H27: 3
D28: =IFERROR(IF(INDEX(Упражнения[],ПоследняяЗаписьОбУпражнениях-НачальнаяСтрокаУпражнений-H28,1)<>"",INDEX(Упражнения[],ПоследняяЗаписьОбУпражнениях-НачальнаяСтрокаУпражнений-H28,1)),"") -> 2017-05-20 | E28: СБ | F28: =IFERROR((IF(INDEX(Упражнения[],ПоследняяЗаписьОбУпражнениях-НачальнаяСтрокаУпражнений-H28,1)<>"",INDEX(Упражнения[],ПоследняяЗаписьОбУпражнениях-НачальнаяСтрокаУпражнений-H28,2),0)),0) -> 20 | G28: =IFERROR((IF(INDEX(Упражнения[],ПоследняяЗаписьОбУпражнениях-НачальнаяСтрокаУпражнений-H28,2)<>"",INDEX(Упражнения[],ПоследняяЗаписьОбУпражнениях-НачальнаяСтрокаУпражнений-H28,3),0)),0) -> 295 | H28: 4
D29: =IFERROR(IF(INDEX(Упражнения[],ПоследняяЗаписьОбУпражнениях-НачальнаяСтрокаУпражнений-H29,1)<>"",INDEX(Упражнения[],ПоследняяЗаписьОбУпражнениях-НачальнаяСтрокаУпражнений-H29,1)),"") -> 2017-05-19 | E29: ПТ | F29: =IFERROR((IF(INDEX(Упражнения[],ПоследняяЗаписьОбУпражнениях-НачальнаяСтрокаУпражнений-H29,1)<>"",INDEX(Упражнения[],ПоследняяЗаписьОбУпражнениях-НачальнаяСтрокаУпражнений-H29,2),0)),0) -> 40 | G29: =IFERROR((IF(INDEX(Упражнения[],ПоследняяЗаписьОбУпражнениях-НачальнаяСтрокаУпражнений-H29,2)<>"",INDEX(Упражнения[],ПоследняяЗаписьОбУпражнениях-НачальнаяСтрокаУпражнений-H29,3),0)),0) -> 270 | H29: 5
D30: =IFERROR(IF(INDEX(Упражнения[],ПоследняяЗаписьОбУпражнениях-НачальнаяСтрокаУпражнений-H30,1)<>"",INDEX(Упражнения[],ПоследняяЗаписьОбУпражнениях-НачальнаяСтрокаУпражнений-H30,1)),"") -> 2017-05-18 | E30: ЧТ | F30: =IFERROR((IF(INDEX(Упражнения[],ПоследняяЗаписьОбУпражнениях-НачальнаяСтрокаУпражнений-H30,1)<>"",INDEX(Упражнения[],ПоследняяЗаписьОбУпражнениях-НачальнаяСтрокаУпражнений-H30,2),0)),0) -> 45 | G30: =IFERROR((IF(INDEX(Упражнения[],ПоследняяЗаписьОбУпражнениях-НачальнаяСтрокаУпражнений-H30,2)<>"",INDEX(Упражнения[],ПоследняяЗаписьОбУпражнениях-НачальнаяСтрокаУпражнений-H30,3),0)),0) -> 325 | H30: 6
D31: =IFERROR(IF(INDEX(Упражнения[],ПоследняяЗаписьОбУпражнениях-НачальнаяСтрокаУпражнений-H31,1)<>"",INDEX(Упражнения[],ПоследняяЗаписьОбУпражнениях-НачальнаяСтрокаУпражнений-H31,1)),"") -> 2017-05-17 | E31: СР | F31: =IFERROR((IF(INDEX(Упражнения[],ПоследняяЗаписьОбУпражнениях-НачальнаяСтрокаУпражнений-H31,1)<>"",INDEX(Упражнения[],ПоследняяЗаписьОбУпражнениях-НачальнаяСтрокаУпражнений-H31,2),0)),0) -> 40 | G31: =IFERROR((IF(INDEX(Упражнения[],ПоследняяЗаписьОбУпражнениях-НачальнаяСтрокаУпражнений-H31,2)<>"",INDEX(Упражнения[],ПоследняяЗаписьОбУпражнениях-НачальнаяСтрокаУпражнений-H31,3),0)),0) -> 175 | H31: 7
D32: =IFERROR(IF(INDEX(Упражнения[],ПоследняяЗаписьОбУпражнениях-НачальнаяСтрокаУпражнений-H32,1)<>"",INDEX(Упражнения[],ПоследняяЗаписьОбУпражнениях-НачальнаяСтрокаУпражнений-H32,1)),"") -> 2017-05-16 | E32: ВТ | F32: =IFERROR((IF(INDEX(Упражнения[],ПоследняяЗаписьОбУпражнениях-НачальнаяСтрокаУпражнений-H32,1)<>"",INDEX(Упражнения[],ПоследняяЗаписьОбУпражнениях-НачальнаяСтрокаУпражнений-H32,2),0)),0) -> 30 | G32: =IFERROR((IF(INDEX(Упражнения[],ПоследняяЗаписьОбУпражнениях-НачальнаяСтрокаУпражнений-H32,2)<>"",INDEX(Упражнения[],ПоследняяЗаписьОбУпражнениях-НачальнаяСтрокаУпражнений-H32,3),0)),0) -> 335 | H32: 8
D33: =IFERROR(IF(INDEX(Упражнения[],ПоследняяЗаписьОбУпражнениях-НачальнаяСтрокаУпражнений-H33,1)<>"",INDEX(Упражнения[],ПоследняяЗаписьОбУпражнениях-НачальнаяСтрокаУпражнений-H33,1)),"") -> 2017-05-15 | E33: ПН | F33: =IFERROR((IF(INDEX(Упражнения[],ПоследняяЗаписьОбУпражнениях-НачальнаяСтрокаУпражнений-H33,1)<>"",INDEX(Упражнения[],ПоследняяЗаписьОбУпражнениях-НачальнаяСтрокаУпражнений-H33,2),0)),0) -> 40 | G33: =IFERROR((IF(INDEX(Упражнения[],ПоследняяЗаписьОбУпражнениях-НачальнаяСтрокаУпражнений-H33,2)<>"",INDEX(Упражнения[],ПоследняяЗаписьОбУпражнениях-НачальнаяСтрокаУпражнений-H33,3),0)),0) -> 205 | H33: 9
D34: =IFERROR(IF(INDEX(Упражнения[],ПоследняяЗаписьОбУпражнениях-НачальнаяСтрокаУпражнений-H34,1)<>"",INDEX(Упражнения[],ПоследняяЗаписьОбУпражнениях-НачальнаяСтрокаУпражнений-H34,1)),"") -> 2017-05-14 | E34: ВС | F34: =IFERROR((IF(INDEX(Упражнения[],ПоследняяЗаписьОбУпражнениях-НачальнаяСтрокаУпражнений-H34,1)<>"",INDEX(Упражнения[],ПоследняяЗаписьОбУпражнениях-НачальнаяСтрокаУпражнений-H34,2),0)),0) -> 20 | G34: =IFERROR((IF(INDEX(Упражнения[],ПоследняяЗаписьОбУпражнениях-НачальнаяСтрокаУпражнений-H34,2)<>"",INDEX(Упражнения[],ПоследняяЗаписьОбУпражнениях-НачальнаяСтрокаУпражнений-H34,3),0)),0) -> 285 | H34: 10
D35: =IFERROR(IF(INDEX(Упражнения[],ПоследняяЗаписьОбУпражнениях-НачальнаяСтрокаУпражнений-H35,1)<>"",INDEX(Упражнения[],ПоследняяЗаписьОбУпражнениях-НачальнаяСтрокаУпражнений-H35,1)),"") -> 2017-05-13 | E35: СБ | F35: =IFERROR((IF(INDEX(Упражнения[],ПоследняяЗаписьОбУпражнениях-НачальнаяСтрокаУпражнений-H35,1)<>"",INDEX(Упражнения[],ПоследняяЗаписьОбУпражнениях-НачальнаяСтрокаУпражнений-H35,2),0)),0) -> 25 | G35: =IFERROR((IF(INDEX(Упражнения[],ПоследняяЗаписьОбУпражнениях-НачальнаяСтрокаУпражнений-H35,2)<>"",INDEX(Упражнения[],ПоследняяЗаписьОбУпражнениях-НачальнаяСтрокаУпражнений-H35,3),0)),0) -> 125 | H35: 11
D36: =IFERROR(IF(INDEX(Упражнения[],ПоследняяЗаписьОбУпражнениях-НачальнаяСтрокаУпражнений-H36,1)<>"",INDEX(Упражнения[],ПоследняяЗаписьОбУпражнениях-НачальнаяСтрокаУпражнений-H36,1)),"") -> 2017-05-12 | E36: ПТ | F36: =IFERROR((IF(INDEX(Упражнения[],ПоследняяЗаписьОбУпражнениях-НачальнаяСтрокаУпражнений-H36,1)<>"",INDEX(Упражнения[],ПоследняяЗаписьОбУпражнениях-НачальнаяСтрокаУпражнений-H36,2),0)),0) -> 30 | G36: =IFERROR((IF(INDEX(Упражнения[],ПоследняяЗаписьОбУпражнениях-НачальнаяСтрокаУпражнений-H36,2)<>"",INDEX(Упражнения[],ПоследняяЗаписьОбУпражнениях-НачальнаяСтрокаУпражнений-H36,3),0)),0) -> 150 | H36: 12
